[Event "ESTCC U50 2018"]
[Site "Walbrzych"]
[Date "2018.04.21"]
[Round "8"]
[White "Robertson, Ian C"]
[Black "Lewis, Andrew P"]
[Result "1/2-1/2"]
[ECO "A48"]
[WhiteElo "2038"]
[BlackElo "2279"]
[Annotator "NA"]
[PlyCount "130"]
[EventDate "2018.??.??"]
[EventCountry "POL"]
[SourceTitle "playchess.com"]
[Source "ChessBase"]
[SourceQuality "1"]
[WhiteTeam "Scotland"]
[BlackTeam "England"]
[WhiteTeamCountry "SCO"]
[BlackTeamCountry "ENG"]
[TimeControl "40/5400+30:1800+30"]

1. d4 {[%emt 0:00:00]} Nf6 {[%emt 0:00:21]} 2. Nf3 {[%emt 0:00:00]} g6 {[%emt 0:00:13]} 3. Nbd2 {[%emt 0:00:09]} Bg7 {[%emt 0:01:34]} 4. e4 {[%emt 0:00:33]} d6 {[%emt 0:01:31]} 5. Be2 {[%emt 0:01:44]} O-O {[%emt 0:01:06]} 6. O-O {[%emt 0:02:18]} c5 {[%emt 0:00:30]} 7. dxc5 {[%emt 0:03:44]} dxc5 {[%emt 0:00:26]} 8. c3 {[%emt 0:00:19]} Nc6 {[%emt 0:00:48]} 9. Re1 {[%emt 0:05:51]} Qc7 {[%emt 0:01:25]} 10. Qc2 {[%emt 0:04:11]} b6 {[%emt 0:01:46] LiveBook: 14 Games B07: Pirc Defence: Miscellaneous Systems} 11. Rb1 $146 {[%emt 0:02:42]} ({Predecessor:} 11. a4 Bb7 12. Bf1 Na5 13. Nc4 Nxc4 14. Bxc4 e6 15. h3 h6 16. Bf1 Kh7 17. Nd2 Nd7 18. a5 {1-0 (40) Vaibhav,S (2542)-Zhou,Y (2449) chess.com INT 2018}) 11... Bb7 {[%emt 0:05:32]} 12. b4 {[%emt 0:23:14]} cxb4 {[%emt 0:15:39]} 13. cxb4 {[%emt 0:00:24]} Rac8 {[%emt 0:00:11]} 14. Qa4 {[%emt 0:13:45]} a6 {[%emt 0:15:21]} 15. Bxa6 {[%emt 0:15:29]} Ra8 {[%emt 0:01:16]} 16. b5 {[%emt 0:00:06]} Nb8 {[%emt 0:00:40]} 17. Qc4 {[%emt 0:01:46]} Nxa6 {[%emt 0:01:01]} 18. bxa6 {[%emt 0:00:25]} Qxc4 {[%emt 0:02:41]} 19. Nxc4 {[%emt 0:00:02]} Bxe4 {[%emt 0:11:41]} 20. Rxb6 {[%emt 0:01:12]} Rfc8 {[%emt 0:01:19]} 21. Rxf6 {[%emt 0:09:36]} Rxc4 {[%emt 0:08:24]} 22. Rb6 {[%emt 0:02:31]} Bxf3 {[%emt 0:09:45]} 23. gxf3 {[%emt 0:00:17]} Bd4 {[%emt 0:00:14]} 24. Rb7 {[%emt 0:01:52]} Rc2 {[%emt 0:10:56]} 25. Be3 {[%emt 0:01:13]} Bxe3 $1 {[%emt 0:01:31]} 26. Rxe3 {[%emt 0:00:21]} Rxa6 {[%emt 0:01:04]} 27. Rexe7 {[%emt 0:04:28]} Rf6 {[%emt 0:00:15]} 28. Kg2 {[%emt 0:00:58]} Rxa2 $11 {[%emt 0:00:08]} 29. Ra7 {[%emt 0:00:09]} Rb2 {[%emt 0:01:28]} 30. Rab7 {[%emt 0:00:07]} Rxb7 {[%emt 0:01:06]} 31. Rxb7 {[%emt 0:00:03]} Kg7 {[%emt 0:00:10]} 32. Kg3 {[%emt 0:01:09]} Rf5 {[%emt 0:00:15]} 33. f4 {[%emt 0:00:42]} Ra5 {[%emt 0:00:25]} 34. Rc7 {[%emt 0:01:20]} Ra3+ {[%emt 0:00:13]} 35. Kg2 {[%emt 0:00:32]} Kf6 {[%emt 0:01:28]} 36. Rb7 {[%emt 0:00:20]} h5 {[%emt 0:00:32]} 37. Rc7 {[%emt 0:01:11]} Ke6 {[%emt 0:01:00]} 38. Rb7 {[%emt 0:00:18]} f6 {[%emt 0:00:57]} 39. Rb5 {[%emt 0:02:37]} Rd3 {[%emt 0:00:24]} 40. f5+ {[%emt 0:00:00]} gxf5 {[%emt 0:00:12]} 41. Rb7 {[%emt 0:07:21]} f4 {[%emt 0:00:56]} 42. Rb5 {[%emt 0:04:47]} Rd5 {[%emt 0:02:32]} 43. Rb8 {[%emt 0:00:18]} Kf5 {[%emt 0:00:53]} 44. Rb3 {[%emt 0:08:04]} Kg4 {[%emt 0:05:08]} 45. Ra3 {[%emt 0:04:39]} Rg5 {[%emt 0:02:58]} 46. Rb3 {[%emt 0:02:09]} Kh4+ {[%emt 0:02:58]} 47. Kf1 {[%emt 0:01:46]} Rf5 {[%emt 0:00:46]} 48. Rf3 {[%emt 0:00:27]} Kg4 {[%emt 0:01:12]} 49. Kg2 {[%emt 0:00:15]} Rg5 {[%emt 0:01:09]} 50. Rb3 {[%emt 0:00:37]} Kh4+ {[%emt 0:01:33]} 51. Kf1 {[%emt 0:00:26]} Rd5 {[%emt 0:01:49]} 52. Kg2 {[%emt 0:00:24]} Kg4 {[%emt 0:00:35]} 53. Ra3 {[%emt 0:00:30]} Rd1 {[%emt 0:01:46]} 54. h3+ {[%emt 0:01:01]} Kh4 {[%emt 0:01:04]} 55. Ra4 {[%emt 0:00:44]} Kg5 {[%emt 0:00:34]} 56. Ra5+ {[%emt 0:00:48]} f5 {[%emt 0:01:34]} 57. Ra3 {[%emt 0:00:57]} Rd4 {[%emt 0:00:24]} 58. Rb3 {[%emt 0:00:08]} Kh4 {[%emt 0:00:53]} 59. Ra3 {[%emt 0:00:25]} Rd8 {[%emt 0:00:47]} 60. Rf3 {[%emt 0:00:43]} Rg8+ {[%emt 0:00:40]} 61. Kf1 {[%emt 0:00:23]} Kg5 {[%emt 0:01:52]} 62. Rb3 {[%emt 0:00:35]} Kf6 {[%emt 0:00:46]} 63. Rb6+ {[%emt 0:00:27]} Ke5 {[%emt 0:02:31]} 64. Rb5+ {[%emt 0:00:05]} Ke4 {[%emt 0:01:18]} 65. Rb4+ {[%emt 0:00:03]} Ke5 {[%emt 0:00:49]} 1/2-1/2

[Event "ESTCC U50 2018"]
[Site "Walbrzych"]
[Date "2018.04.21"]
[Round "8"]
[White "Strzelecki, Jerzy"]
[Black "Kierzek, Mira"]
[Result "1-0"]
[ECO "A16"]
[WhiteElo "2038"]
[BlackElo "2011"]
[Annotator "NA"]
[PlyCount "141"]
[EventDate "2018.??.??"]
[EventCountry "POL"]
[SourceTitle "playchess.com"]
[Source "ChessBase"]
[SourceQuality "1"]
[WhiteTeam "Poland"]
[BlackTeam "Germany"]
[WhiteTeamCountry "POL"]
[BlackTeamCountry "GER"]
[TimeControl "40/5400+30:1800+30"]

1. c4 {[%emt 0:00:00]} Nf6 {[%emt 0:00:28]} 2. Nc3 {[%emt 0:00:00]} c6 {[%emt 0:00:20]} 3. e4 {[%emt 0:01:49]} d6 {[%emt 0:05:26]} 4. d4 {[%emt 0:00:21]} Nbd7 {[%emt 0:02:14]} 5. Nf3 {[%emt 0:00:42] A53: Old Indian Defence without Nf3} Qc7 {[%emt 0:02:16] LiveBook: 4 Games} (5... e5 6. Be2 Be7 7. O-O O-O 8. Re1 a6 9. Rb1 Re8 10. Bf1 b5 11. b4 Qc7 12. a4 exd4 13. Nxd4 bxc4 14. Bxc4 Ne5 15. Ba2 c5 16. bxc5 dxc5 17. Nd5 Nxd5 18. Bxd5 {0-1 (41) Marin,M (2549)-Berkes,F (2645) Calimanesti Caciulata 2016}) 6. Be2 {[%emt 0:00:30]} g6 {[%emt 0:00:49]} 7. O-O {[%emt 0:01:34]} Bg7 {[%emt 0:00:31]} 8. Rb1 {[%emt 0:01:10]} O-O {[%emt 0:01:34]} 9. b4 {[%emt 0:00:46]} b6 $146 {[%emt 0:04:42]} ({Predecessor:} 9... e5 10. dxe5 dxe5 11. Qc2 b6 12. h3 Re8 13. Be3 Nh5 14. Rfd1 Nf4 15. Bf1 Nf8 16. a4 Be6 17. c5 bxc5 18. Bxc5 {1-0 (39) Kyhle,B (2290)-Holving,R (2165) Stockholm 1996}) 10. Bd2 {[%emt 0:01:38]} Bb7 {[%emt 0:00:48]} 11. a3 {[%emt 0:04:51]} a6 {[%emt 0:06:35]} 12. Qc2 {[%emt 0:03:44]} Rac8 {[%emt 0:02:51]} 13. Rfc1 {[%emt 0:02:24]} Qb8 {[%emt 0:07:07]} 14. Qd1 {[%emt 0:13:06]} Rcd8 {[%emt 0:04:52]} 15. Qc2 {[%emt 0:03:33]} ({White should try} 15. Be3 $16) 15... Rc8 {[%emt 0:00:20]} 16. Qd1 {[%emt 0:00:53]} b5 {[%emt 0:03:45]} 17. c5 {[%emt 0:02:41]} dxc5 {[%emt 0:12:19]} 18. dxc5 {[%emt 0:00:52]} Ne5 {[%emt 0:03:19]} 19. Qc2 {[%emt 0:04:01]} Rcd8 {[%emt 0:01:06]} 20. Rd1 {[%emt 0:00:42]} Bc8 {[%emt 0:01:40]} 21. Be1 {[%emt 0:01:14]} Nfg4 {[%emt 0:02:17]} 22. g3 {[%emt 0:00:40]} Nxf3+ {[%emt 0:02:16]} 23. Bxf3 {[%emt 0:00:17]} Ne5 {[%emt 0:00:16]} 24. Be2 {[%emt 0:00:58]} Be6 {[%emt 0:02:19]} 25. Rxd8 {[%emt 0:02:27]} Rxd8 {[%emt 0:00:29]} 26. Rd1 {[%emt 0:00:13]} Nc4 {[%emt 0:02:29]} 27. a4 {[%emt 0:00:47]} Qc7 {[%emt 0:02:05]} 28. axb5 {[%emt 0:02:05]} axb5 {[%emt 0:00:10]} 29. Rxd8+ {[%emt 0:01:52]} Qxd8 {[%emt 0:00:16]} 30. Nd1 {[%emt 0:02:35]} Qd7 {[%emt 0:09:06]} 31. h4 {[%emt 0:18:19]} Bg4 {[%emt 0:04:35]} 32. f3 $11 {[%emt 0:06:53]} Bd4+ {[%emt 0:01:50]} 33. Kh2 {[%emt 0:00:45]} Be6 {[%emt 0:00:54]} 34. Bc3 {[%emt 0:03:04]} h5 {[%emt 0:03:51]} 35. Kg2 {[%emt 0:05:03]} Bg7 {[%emt 0:01:07]} 36. Bxg7 {[%emt 0:02:26]} Kxg7 {[%emt 0:00:09]} 37. Qc3+ {[%emt 0:00:24]} Kg8 {[%emt 0:00:16]} 38. Ne3 {[%emt 0:00:59]} Nd2 {[%emt 0:03:50]} 39. Kf2 {[%emt 0:02:23]} Nb3 {[%emt 0:01:40]} 40. f4 {[%emt 0:00:00]} Nd2 {[%emt 0:03:31]} 41. Bd3 {[%emt 0:06:09]} Nb3 {[%emt 0:04:45]} 42. f5 {[%emt 0:07:59]} gxf5 {[%emt 0:00:38]} 43. exf5 {[%emt 0:01:16]} Bd5 {[%emt 0:00:29]} 44. Bc2 {[%emt 0:01:44]} Nc1 {[%emt 0:01:18]} 45. Bb1 {[%emt 0:02:41]} Nb3 {[%emt 0:17:04]} 46. Bc2 {[%emt 0:06:56]} Nc1 {[%emt 0:01:33]} 47. Qd2 {[%emt 0:08:23]} Na2 {[%emt 0:02:11]} 48. Bb3 {[%emt 0:01:04]} Nxb4 {[%emt 0:00:47]} 49. Qxb4 {[%emt 0:01:33]} e6 {[%emt 0:00:33]} 50. Qd4 {[%emt 0:01:26]} Qa7 {[%emt 0:01:45]} 51. Bxd5 {[%emt 0:00:23]} exd5 {[%emt 0:00:04]} 52. f6 {[%emt 0:01:03]} Qa2+ {[%emt 0:00:56]} 53. Kf3 {[%emt 0:00:44]} Qb1 {[%emt 0:00:34]} 54. Qe5 {[%emt 0:01:08]} Qg6 {[%emt 0:03:17]} 55. Qg5 {[%emt 0:01:44]} Kf8 {[%emt 0:00:16]} 56. Qxg6 {[%emt 0:00:21]} fxg6 {[%emt 0:00:01]} 57. Kf4 {[%emt 0:00:26]} d4 {[%emt 0:00:36]} 58. Nd1 {[%emt 0:00:16]} Kf7 {[%emt 0:00:19]} 59. Ke5 {[%emt 0:00:06]} d3 {[%emt 0:01:14]} 60. Nb2 {[%emt 0:01:13]} d2 {[%emt 0:00:13]} 61. Nd1 {[%emt 0:00:08]} b4 {[%emt 0:00:10]} 62. Nb2 {[%emt 0:00:07]} b3 {[%emt 0:00:56]} 63. Nd1 {[%emt 0:00:07]} b2 {[%emt 0:01:49]} 64. Nxb2 {[%emt 0:00:11]} Kf8 {[%emt 0:00:37]} 65. Ke6 {[%emt 0:00:53]} Ke8 {[%emt 0:00:02]} 66. f7+ {[%emt 0:01:20]} Kf8 {[%emt 0:00:01]} 67. Nd1 {[%emt 0:00:31]} g5 {[%emt 0:00:58]} 68. hxg5 {[%emt 0:00:26]} h4 {[%emt 0:00:11]} 69. gxh4 {[%emt 0:00:10]} Kg7 {[%emt 0:00:09]} 70. Ke7 {[%emt 0:00:05]} Kh7 {[%emt 0:00:07]} 71. h5 {[%emt 0:00:56]} 1-0

[Event "ESTCC U50 2018"]
[Site "Walbrzych"]
[Date "2018.04.21"]
[Round "8"]
[White "Nuenchert, Eveline"]
[Black "Czyz, Andrzej"]
[Result "1/2-1/2"]
[ECO "A06"]
[WhiteElo "2033"]
[BlackElo "1999"]
[Annotator "NA"]
[PlyCount "41"]
[EventDate "2018.??.??"]
[EventCountry "POL"]
[SourceTitle "playchess.com"]
[Source "ChessBase"]
[SourceQuality "1"]
[WhiteTeam "Germany"]
[BlackTeam "Poland"]
[WhiteTeamCountry "GER"]
[BlackTeamCountry "POL"]
[TimeControl "40/5400+30:1800+30"]

1. Nf3 {[%emt 0:00:00]} d5 {[%emt 0:01:43]} 2. g3 {[%emt 0:00:04]} Bf5 {[%emt 0:00:56]} 3. Bg2 {[%emt 0:00:31]} e6 {[%emt 0:01:24]} 4. d3 {[%emt 0:02:08]} Nf6 {[%emt 0:00:41]} 5. Nbd2 {[%emt 0:01:06]} Be7 {[%emt 0:04:12]} 6. c3 {[%emt 0:02:20]} a5 {[%emt 0:02:52]} 7. O-O {[%emt 0:02:15]} h5 {[%emt 0:01:05]} 8. Re1 {[%emt 0:04:18]} c6 {[%emt 0:03:56]} 9. Qb3 {[%emt 0:05:17]} b5 {[%emt 0:02:43]} 10. a4 {[%emt 0:01:25]} b4 {[%emt 0:03:24]} 11. e4 {[%emt 0:00:53]} Bh7 {[%emt 0:02:29]} 12. Ng5 {[%emt 0:07:17]} Bg6 {[%emt 0:01:50]} 13. Ndf3 {[%emt 0:00:54]} Nbd7 {[%emt 0:02:04]} 14. Nh4 {[%emt 0:03:36]} Nf8 {[%emt 0:01:40]} (14... Bh7 $1 $14) 15. exd5 {[%emt 0:05:57]} cxd5 {[%emt 0:00:32]} 16. c4 {[%emt 0:00:34]} Rc8 {[%emt 0:03:09] [#]} (16... Ra6 $16 17. cxd5 Nxd5) 17. cxd5 $18 {[%emt 0:17:11]} Nxd5 {[%emt 0:07:00]} 18. Nxg6 {[%emt 0:00:13]} Nxg6 {[%emt 0:20:28]} 19. h4 {[%emt 0:03:46]} Bxg5 {[%emt 0:11:37]} 20. Bxg5 {[%emt 0:00:19]} Nge7 {[%emt 0:00:58]} 21. Rac1 {[%emt 0:04:57]} 1/2-1/2

[Event "ESTCC U50 2018"]
[Site "Walbrzych"]
[Date "2018.04.21"]
[Round "8"]
[White "Jones, Gareth"]
[Black "Webster, Jim J"]
[Result "1-0"]
[ECO "A04"]
[WhiteElo "1858"]
[BlackElo "1769"]
[Annotator "NA"]
[PlyCount "103"]
[EventDate "2018.??.??"]
[EventCountry "POL"]
[SourceTitle "playchess.com"]
[Source "ChessBase"]
[SourceQuality "1"]
[WhiteTeam "England"]
[BlackTeam "Scotland"]
[WhiteTeamCountry "ENG"]
[BlackTeamCountry "SCO"]
[TimeControl "40/5400+30:1800+30"]

1. Nf3 {[%emt 0:00:00]} c5 {[%emt 0:00:19]} 2. g3 {[%emt 0:00:00]} b6 {[%emt 0:00:24]} 3. Bg2 {[%emt 0:00:03]} Bb7 {[%emt 0:00:05]} 4. O-O {[%emt 0:00:13]} Nf6 {[%emt 0:00:03]} 5. b3 {[%emt 0:01:41]} g6 {[%emt 0:00:27]} 6. Bb2 {[%emt 0:00:08]} Bg7 {[%emt 0:00:02]} 7. d4 {[%emt 0:03:48] A04: Unusual lines after 1 Nf3 and King's Indian Attack} (7. c4 O-O 8. Nc3 d5 9. Nxd5 Nxd5 10. Bxg7 Kxg7 11. cxd5 Bxd5 12. d4 Nd7 13. dxc5 Nxc5 14. Qd4+ f6 15. Rfd1 Bxf3 16. Bxf3 Qxd4 17. Rxd4 {½-½ (41) Demidov,M (2523)-Vidit,S (2718) chess.com INT 2018}) 7... cxd4 {[%emt 0:00:44]} 8. Bxd4 {[%emt 0:01:41]} O-O {[%emt 0:00:08]} 9. Nbd2 {[%emt 0:01:58]} Nc6 {[%emt 0:01:32]} 10. Bb2 {[%emt 0:00:25]} d5 {[%emt 0:02:23]} 11. Nd4 $146 {[%emt 0:07:38]} ({Find the theoretical novelty and annotate with similar games:} 11. c4 dxc4 12. Nxc4 b5 13. Qxd8 Rfxd8 14. Ne3 Ne4 15. Bxg7 Kxg7 {0-1 (75) Dimitrov,A (2333)-Nikolaidis,I (2566) Porto Rio 2014}) 11... Qd7 {[%emt 0:09:55]} 12. e3 {[%emt 0:04:07]} Rac8 {[%emt 0:02:05]} 13. c4 {[%emt 0:04:23]} Rfd8 {[%emt 0:08:25]} 14. Qe2 {[%emt 0:05:06]} e6 {[%emt 0:08:47]} 15. Rfd1 {[%emt 0:03:32]} Qe7 {[%emt 0:01:05]} 16. Rac1 {[%emt 0:03:10]} dxc4 {[%emt 0:04:09]} 17. Nxc4 {[%emt 0:02:48]} Nxd4 {[%emt 0:02:18]} 18. Bxd4 {[%emt 0:05:57]} Bxg2 {[%emt 0:00:11]} 19. Kxg2 {[%emt 0:00:09]} Qb7+ {[%emt 0:01:20]} 20. f3 {[%emt 0:04:33]} Ne8 {[%emt 0:07:34]} 21. Bxg7 {[%emt 0:09:05]} Kxg7 {[%emt 0:00:28]} 22. Qb2+ {[%emt 0:00:27]} f6 {[%emt 0:00:08]} 23. a4 {[%emt 0:02:07]} a6 {[%emt 0:03:25]} 24. Ra1 {[%emt 0:05:35]} b5 {[%emt 0:03:14]} 25. axb5 {[%emt 0:05:24]} axb5 {[%emt 0:00:42]} 26. Rxd8 {[%emt 0:01:29]} Rxd8 {[%emt 0:00:18]} 27. Nd2 {[%emt 0:00:33]} Qb6 {[%emt 0:02:11]} 28. Kf2 {[%emt 0:03:09]} Rd3 {[%emt 0:00:46]} 29. Nf1 {[%emt 0:02:05]} Qc7 {[%emt 0:02:28]} 30. Ra8 {[%emt 0:02:50]} Rd8 {[%emt 0:02:40]} 31. Rxd8 {[%emt 0:05:09]} Qxd8 {[%emt 0:00:10]} 32. Qd2 {[%emt 0:02:44]} Qc7 {[%emt 0:01:27]} 33. Qd3 {[%emt 0:01:51]} Qc6 {[%emt 0:01:16]} 34. Nd2 {[%emt 0:02:57]} Nd6 {[%emt 0:00:17]} 35. Qd4 {[%emt 0:01:06]} Qc7 {[%emt 0:02:14]} 36. g4 {[%emt 0:02:43]} e5 {[%emt 0:01:08]} 37. Qd5 {[%emt 0:01:12]} Qe7 {[%emt 0:01:30]} 38. Ke2 {[%emt 0:02:04]} Qc7 {[%emt 0:04:11]} 39. Kd3 {[%emt 0:01:56]} Qb6 {[%emt 0:00:36]} 40. g5 {[%emt 0:00:00]} Qd8 {[%emt 0:03:22]} 41. Ne4 {[%emt 0:04:25]} Nf7 $18 {[%emt 0:01:01]} 42. Qxd8 {[%emt 0:03:33]} Nxd8 {[%emt 0:00:01]} 43. gxf6+ {[%emt 0:03:53]} Kf7 {[%emt 0:00:10]} 44. Nd6+ {[%emt 0:01:30]} Kxf6 {[%emt 0:00:11]} 45. Nxb5 {[%emt 0:00:08]} g5 {[%emt 0:00:38]} 46. Nd6 {[%emt 0:01:35]} Ke6 47. Ne4 {[%emt 0:01:20]} Kf5 {[%emt 0:02:11]} 48. b4 {[%emt 0:01:36]} Nb7 {[%emt 0:04:33]} 49. Ng3+ {[%emt 0:01:34]} Ke6 {[%emt 0:00:18]} 50. Kc4 {[%emt 0:00:29]} h6 {[%emt 0:01:34]} 51. Ne4 {[%emt 0:01:14]} Kf5 {[%emt 0:01:39]} 52. Kd5 {[%emt 0:01:20]} 1-0

[Event "ESTCC U50 2018"]
[Site "Walbrzych"]
[Date "2018.04.21"]
[Round "8"]
[White "Puroila, Sippo"]
[Black "Viljava, Tapani"]
[Result "1-0"]
[ECO "A37"]
[WhiteElo "1838"]
[BlackElo "2162"]
[Annotator "NA"]
[PlyCount "75"]
[EventDate "2018.??.??"]
[EventCountry "POL"]
[SourceTitle "playchess.com"]
[Source "ChessBase"]
[SourceQuality "1"]
[WhiteTeam "Finland"]
[BlackTeam "Finland"]
[WhiteTeamCountry "FIN"]
[BlackTeamCountry "FIN"]
[TimeControl "40/5400+30:1800+30"]

1. Nf3 {[%emt 0:00:00]} c5 {[%emt 0:02:34]} 2. c4 {[%emt 0:00:00]} g6 {[%emt 0:00:22]} 3. g3 {[%emt 0:02:53]} Bg7 {[%emt 0:00:09]} 4. Bg2 {[%emt 0:00:10]} Nc6 {[%emt 0:00:46]} 5. Nc3 {[%emt 0:02:44]} e6 {[%emt 0:02:00]} 6. e3 {[%emt 0:06:46]} Nge7 {[%emt 0:05:44]} 7. d4 {[%emt 0:01:58]} cxd4 {[%emt 0:14:28]} 8. Nxd4 {[%emt 0:01:08]} a6 {[%emt 0:09:17]} 9. O-O {[%emt 0:04:02]} O-O {[%emt 0:01:15] LiveBook: 7 Games} 10. Rb1 {[%emt 0:08:02] A36: Symmetrical English vs ...g6: 4 Bg2 Bg7} (10. Nb3 b5 11. c5 Bb7 12. a4 b4 13. Ne4 a5 14. Qc2 Nc8 15. Rd1 f5 16. Ned2 Qc7 17. f4 Nd8 {0-1 (56) Krysztofiak,M (2444)-Rajlich,I (2441) Warsaw 2012}) 10... Re8 $146 {[%emt 0:17:11]} ({Predecessor:} 10... Qc7 11. Nde2 Rb8 12. b4 Ne5 13. c5 b6 14. cxb6 Rxb6 15. Na4 Rb8 16. a3 Bb7 17. f3 Nc4 {0-1 (27) Guo,X (1882)-Weller,J (2249) Birmingham 2016}) 11. a3 {[%emt 0:10:19]} d5 {[%emt 0:06:40]} 12. Nxc6 {[%emt 0:02:15]} bxc6 {[%emt 0:01:03]} 13. cxd5 {[%emt 0:00:38]} cxd5 {[%emt 0:01:13]} 14. Bd2 {[%emt 0:04:49]} a5 {[%emt 0:05:34]} 15. Re1 {[%emt 0:05:57]} Ba6 {[%emt 0:02:15]} 16. Bf1 {[%emt 0:00:40]} Bxf1 {[%emt 0:00:22]} 17. Kxf1 {[%emt 0:00:11]} Nc6 {[%emt 0:07:34]} 18. Nb5 {[%emt 0:00:53]} Qd7 {[%emt 0:01:20]} 19. Qe2 {[%emt 0:01:17]} a4 {[%emt 0:05:30]} 20. b3 {[%emt 0:03:11]} Reb8 {[%emt 0:03:41]} 21. bxa4 {[%emt 0:04:03]} Rxa4 {[%emt 0:01:23]} 22. Rb3 {[%emt 0:00:27]} Ne5 {[%emt 0:03:16]} 23. Reb1 {[%emt 0:01:29]} Nc4 {[%emt 0:01:17]} 24. Bc1 {[%emt 0:03:51]} Raa8 25. e4 {[%emt 0:01:23]} h5 {[%emt 0:03:31]} 26. h4 {[%emt 0:00:14]} Rc8 27. Kg1 {[%emt 0:06:59]} Ra5 {[%emt 0:03:49]} 28. Bf4 {[%emt 0:01:12]} e5 {[%emt 0:00:49]} 29. Bd2 {[%emt 0:00:02]} Raa8 {[%emt 0:01:03]} 30. Be1 {[%emt 0:05:51]} Kh7 {[%emt 0:00:37]} 31. Nc3 {[%emt 0:00:27]} Nxa3 {[%emt 0:00:45]} 32. Rb7 {[%emt 0:00:55]} Qe8 {[%emt 0:00:13]} 33. R1b6 {[%emt 0:00:30]} Nc4 {[%emt 0:00:12]} 34. Nxd5 {[%emt 0:00:57]} Nxb6 {[%emt 0:00:15]} 35. Nxb6 {[%emt 0:00:12]} Qc6 {[%emt 0:00:21]} 36. Nxc8 {[%emt 0:01:08]} Qxb7 {[%emt 0:00:05]} 37. Nd6 {[%emt 0:00:55]} Qc7 {[%emt 0:00:30]} 38. Nb5 $19 {[%emt 0:00:23]} 1-0

[Event "ESTCC U50 2018"]
[Site "Walbrzych"]
[Date "2018.04.21"]
[Round "8"]
[White "Daleczko, Zbigniew"]
[Black "Sirotkina, Nina"]
[Result "1/2-1/2"]
[ECO "B43"]
[WhiteElo "1835"]
[BlackElo "2175"]
[Annotator "NA"]
[PlyCount "59"]
[EventDate "2018.??.??"]
[EventCountry "POL"]
[SourceTitle "playchess.com"]
[Source "ChessBase"]
[SourceQuality "1"]
[WhiteTeam "Poland"]
[BlackTeam "Russia"]
[WhiteTeamCountry "POL"]
[BlackTeamCountry "RUS"]
[TimeControl "40/5400+30:1800+30"]

1. e4 c5 2. Nf3 e6 3. d4 cxd4 4. Nxd4 a6 5. Nc3 Qc7 6. a3 Nf6 7. Be2 Be7 8. O-O Nc6 9. Be3 O-O 10. f4 d6 11. Kh1 {LiveBook: 74 Games} Bd7 12. g4 {B48: Sicilian: Taimanov: 5 Nc3 Qc7 6 Be3 a6 without Be2} (12. Bf3 Na5 13. Bf2 Rac8 14. Qd3 Nc4 15. Nd1 e5 16. b3 exd4 17. bxc4 Qxc4 18. e5 dxe5 19. fxe5 Ng4 20. Bxd4 Qxc2 21. Qxc2 Rxc2 22. Bxb7 {½-½ (29) Ivanov,O (2495)-Grachev,B (2628) Moscow 2016}) 12... Nxd4 13. Bxd4 Bc6 14. Bf3 e5 $146 ({Find the theoretical novelty and annotate with similar games:} 14... Nd7 15. Qe2 Rfe8 16. Rad1 Rac8 17. Qg2 e5 18. Be3 exf4 19. Bxf4 Ne5 {0-1 (71) Aguilo Pons,F (1867)-Checiak,K (2122) Palma de Mallorca 2009}) 15. Be3 exf4 16. Bxf4 Nd7 17. Nd5 Bxd5 18. exd5 Bf6 19. c3 $11 Be5 20. Qd2 {[%emt 1:40:00]} Qc4 21. Bg2 Rae8 22. Bxe5 Rxe5 23. Rf4 Qc7 24. Re1 Rxe1+ 25. Qxe1 Ne5 26. Qb1 h6 27. Qf5 Ng6 28. Re4 Qd8 29. Qf2 Re8 30. Qe1 1/2-1/2

[Event "ESTCC U50 2018"]
[Site "Walbrzych"]
[Date "2018.04.21"]
[Round "8"]
[White "Aird, Ian"]
[Black "Reuben, Stewart"]
[Result "1-0"]
[ECO "B27"]
[WhiteElo "1785"]
[BlackElo "2026"]
[Annotator "NA"]
[PlyCount "37"]
[EventDate "2018.??.??"]
[EventCountry "POL"]
[SourceTitle "playchess.com"]
[Source "ChessBase"]
[SourceQuality "1"]
[WhiteTeam "Scotland"]
[BlackTeam "England"]
[WhiteTeamCountry "SCO"]
[BlackTeamCountry "ENG"]
[TimeControl "40/5400+30:1800+30"]

1. e4 {[%emt 0:00:00]} c5 {[%emt 0:00:05]} 2. Nf3 {[%emt 0:00:00]} g6 {[%emt 0:00:07]} 3. d4 {[%emt 0:00:03]} cxd4 {[%emt 0:00:07]} 4. Qxd4 {[%emt 0:00:12]} Nf6 {[%emt 0:00:13]} 5. Nc3 {[%emt 0:00:25]} Nc6 {[%emt 0:00:43]} 6. Qa4 {[%emt 0:00:18]} Qc7 {[%emt 0:05:02]} 7. Bg5 {[%emt 0:06:21]} Bg7 {[%emt 0:00:59]} 8. Bxf6 {[%emt 0:02:57]} Bxf6 {[%emt 0:00:15]} 9. Nd5 {[%emt 0:00:24]} Qd6 {[%emt 0:03:02]} 10. Rd1 {[%emt 0:07:16]} Bxb2 {[%emt 0:06:25]} 11. Qb3 {[%emt 0:06:26]} Ba3 {[%emt 0:10:25]} 12. Be2 {[%emt 0:11:40]} O-O {[%emt 0:13:58]} 13. O-O {[%emt 0:01:26]} Na5 $18 {[%emt 0:08:02]} (13... Qc5 $11 {and Black is okay.}) 14. Qe3 {[%emt 0:04:15]} Kg7 {[%emt 0:25:15]} 15. Qc3+ {[%emt 0:02:54]} f6 {[%emt 0:02:33]} 16. Qxa5 {[%emt 0:00:38]} e6 {[%emt 0:01:24]} 17. Nxf6 {[%emt 0:03:38]} Bb4 {[%emt 0:03:23]} 18. Qa4 {[%emt 0:06:15]} b5 {[%emt 0:01:58]} 19. Bxb5 {[%emt 0:02:17]} 1-0